bitfinex-derivatives/quotes_ETHF0:USTF0_20251024
["timestamp","ask_amount","ask_price","bid_price","bid_amount"]
[1761273101705,1.27775378,3880.5,3880.4,0.5563]
[1761273101706,1.72385378,3880.5,3880.4,0.5563]
[1761273101908,2.55135838,3880.5,3880.4,0.5563]
[1761273102415,2.55135838,3880.5,3880.4,0.7891]
[1761273102619,2.5541819,3880.5,3880.4,0.79104579]
[1761273104120,1.62812812,3880.5,3880.4,0.79104579]
[1761273105215,1.62812812,3880.5,3880.4,0.55824579]
[1761273105715,1.62812812,3880.5,3880.4,0.33164579]
[1761273108319,1.62812812,3880.5,3880.4,0.00194579]
[1761273109012,1.62812812,3880.5,3880.4,0.33164579]
[1761273110323,1.62812812,3880.5,3880.4,0.55824579]
[1761273111522,0.2231,3879.1,3879.0,1.38940845]
[1761273111713,0.3517,3878.8,3878.2,0.2266]
[1761273111914,0.072,3879.0,3878.0,0.135]
[1761273111915,0.7978,3878.5,3878.4,0.5563]
[1761273112111,1.37408712,3878.5,3878.4,0.3297]
[1761273112409,1.37408712,3878.5,3878.4,1.48223956]
[1761273112410,1.02238712,3878.5,3878.4,1.48223956]
[1761273112614,0.7978,3879.0,3878.9,0.5563]
[1761273112827,1.62567414,3879.0,3878.9,0.5563]
[1761273113316,1.62567414,3879.0,3878.9,0.3297]
[1761273113523,0.7978,3878.7,3878.6,0.3297]
[1761273113717,1.37595073,3878.7,3878.6,0.3297]
[1761273114022,1.37595073,3878.7,3878.6,0.5563]
[1761273117227,0.7978,3878.7,3878.6,0.5563]
[1761273117426,0.7978,3878.7,3878.6,0.7891]
[1761273118127,0.4461,3878.7,3878.6,0.7891]
[1761273121823,0.781,3878.7,3878.6,0.7891]
[1761273123526,0.7925,3879.0,3878.9,0.234]
[1761273123737,1.36963404,3879.0,3878.9,0.7898]
[1761273124124,0.0782,3882.5,3879.0,37.1136]
[1761273124431,0.1407,3883.5,3882.6,0.46349]
[1761273124638,0.4576,3883.5,3883.4,0.234]
[1761273124827,0.4576,3883.5,3883.4,0.5576]
[1761273125838,2.15036783,3884.4,3884.3,0.7898]
[1761273126137,0.1051,3887.0,3884.6,0.3236]
[1761273126431,0.1051,3887.0,3885.5,0.5576]
[1761273126432,0.4576,3885.6,3885.5,0.5576]
[1761273126638,0.00242143,3885.6,3885.5,0.9264]
[1761273126937,2.15278926,3885.6,3885.5,0.7898]
[1761273127233,0.3349,3885.2,3884.9,0.3236]
[1761273127438,0.1407,3885.5,3884.3,2.46894368]
[1761273127439,0.2294,3884.7,3884.6,0.234]
[1761273127631,0.2294,3884.7,3884.6,0.4662]
[1761273128139,0.2294,3884.7,3884.6,0.7898]
[1761273128339,0.3349,3885.4,3884.7,0.3236]
[1761273128531,0.00242143,3885.6,3884.0,0.1366]
[1761273128532,0.00242143,3885.6,3885.5,0.9264]
[1761273128933,0.00242143,3885.6,3885.5,3.39534368]
[1761273129531,0.00242143,3885.6,3885.5,0.9264]
[1761273130332,0.00242143,3885.6,3885.5,0.7898]
[1761273130333,0.79492143,3885.6,3885.5,0.7898]
[1761273130840,0.23182143,3885.6,3885.5,0.9264]
[1761273131144,0.00242143,3885.6,3885.5,0.9264]
[1761273133337,0.3349,3887.2,3885.7,0.3236]
[1761273133636,0.3349,3886.9,3886.1,0.3236]
[1761273134036,0.3349,3886.7,3886.1,0.3236]
[1761273134540,2.48526783,3886.6,3886.5,0.5576]
[1761273134742,2.48526783,3886.6,3886.5,0.55953088]
[1761273134943,2.15036783,3886.6,3886.5,0.92833088]
[1761273135136,2.48526783,3886.6,3886.5,0.79173088]
[1761273135335,2.48526783,3886.6,3886.5,0.00193088]
[1761273135835,2.48526783,3886.6,3886.5,0.55953088]
[1761273136040,1.69276783,3886.6,3886.5,0.92833088]
[1761273136646,0.00187063,3886.7,3886.6,0.7898]
[1761273137143,0.45947063,3886.7,3886.6,0.7898]
[1761273138133,2.15223846,3886.7,3886.6,0.7898]
[1761273138435,2.48713846,3886.7,3886.6,0.7898]
[1761273138834,2.15223846,3886.7,3886.6,0.7898]
[1761273139140,2.48713846,3886.7,3886.6,0.7898]
[1761273139338,0.00187063,3886.7,3886.6,0.7898]
[1761273140636,2.48713846,3886.7,3886.6,0.3236]
[1761273140933,2.48713846,3886.7,3886.5,0.00193088]
[1761273140934,0.7925,3886.6,3886.5,0.00193088]
[1761273141129,2.48526783,3886.6,3886.5,0.00193088]
[1761273142328,2.48526783,3886.6,3886.5,0.55953088]
[1761273144737,2.48526783,3886.6,3886.5,0.92833088]
[1761273145744,2.15036783,3886.6,3886.5,0.92833088]
[1761273145942,2.48526783,3886.6,3886.5,0.92833088]
[1761273146142,2.48526783,3886.6,3886.5,0.79173088]
[1761273147445,2.48526783,3886.6,3886.5,0.55953088]
[1761273148542,2.48526783,3886.6,3886.5,0.23593088]
[1761273148940,2.48526783,3886.6,3886.5,0.00193088]
[1761273149146,1.48526783,3886.6,3886.5,0.00193088]
[1761273150140,6.48526783,3886.6,3886.5,0.00193088]
[1761273151734,1.48526783,3886.6,3886.5,0.1572]
[1761273151937,1.48526783,3886.6,3886.5,0.8651]
[1761273152443,0.00187063,3886.7,3886.5,0.8651]
[1761273152638,1.48526783,3886.6,3886.5,0.8651]
[1761273152844,1.48526783,3886.6,3886.5,0.86724439]
[1761273153343,1.72301693,3886.6,3886.5,1.54467414]
[1761273154546,1.72301693,3886.6,3886.5,3.1940919]
[1761273155054,1.72301693,3886.6,3886.5,1.81407414]
[1761273155346,1.72301693,3886.6,3886.5,3.65850473]
[1761273155546,1.72301693,3886.6,3886.5,1.81407414]
[1761273156449,1.72301693,3886.6,3886.5,3.65850473]
[1761273156840,1.72301693,3886.6,3886.5,1.81407414]
[1761273160143,0.2377491,3886.6,3886.5,1.81407414]
[1761273161351,0.00187063,3886.7,3886.6,1.44031]
[1761273161545,0.23813912,3886.7,3886.6,2.11773975]
[1761273162652,0.287,3887.8,3887.7,0.7079]
[1761273162849,0.287,3887.8,3887.7,1.65472975]
[1761273163044,1.63976783,3887.8,3887.7,1.65472975]
[1761273163245,1.50726783,3887.8,3887.7,1.65472975]
[1761273163444,0.022,3887.8,3887.7,1.65472975]
[1761273163746,0.00193827,3887.8,3887.7,6.69500975]
[1761273163941,0.1325,3888.7,3887.7,1.23212975]
[1761273164143,0.86031,3888.3,3888.2,0.97210375]
[1761273164352,1.1571,3888.1,3887.5,0.1572]
[1761273164554,1.1571,3888.1,3887.0,0.1572]
[1761273164555,1.15712,3888.0,3887.0,0.1572]
[1761273164749,0.46295,3887.1,3887.0,0.1572]
[1761273164955,8.26594481,3887.1,3887.0,0.1572]
[1761273165152,8.26594481,3887.1,3887.0,0.4425]
[1761273165552,0.46594481,3887.1,3887.0,0.7119]
[1761273166553,0.46594481,3887.1,3887.0,1.1345]
[1761273167366,0.00299481,3887.1,3887.0,1.1345]
[1761273168258,2.42623024,3887.1,3887.0,1.1345]
[1761273168444,0.61560219,3887.1,3887.0,0.8651]
[1761273169451,2.4625905,3887.1,3887.0,1.1345]
[1761273170057,0.61560219,3887.1,3887.0,0.5798]
[1761273170553,1.07855219,3887.1,3887.0,0.1572]
[1761273172455,1.07855219,3887.1,3887.0,0.5798]
[1761273174358,0.61560219,3887.1,3887.0,0.1572]
[1761273174652,0.81448435,3887.1,3887.0,0.1572]
[1761273176259,0.81448435,3887.1,3887.0,0.5798]
[1761273176558,8.99090075,3887.1,3886.5,0.15934439]
[1761273176860,2.3096108,3886.6,3886.5,0.15934439]
[1761273177058,3.12110034,3886.6,3886.5,0.15934439]
[1761273177263,0.81148954,3886.6,3886.0,0.1572]
[1761273177461,3.12085655,3886.5,3886.0,0.1572]
[1761273177768,1.84743517,3886.1,3886.0,0.1572]
[1761273177954,2.65892471,3886.1,3886.0,0.1572]
[1761273178154,0.81148954,3886.1,3886.0,0.16033436]
[1761273178463,0.81148954,3886.1,3886.0,0.58293436]
[1761273178657,2.65892471,3886.1,3886.0,0.58293436]
[1761273178855,0.81148954,3886.1,3886.0,0.58293436]
[1761273179260,2.65861444,3886.1,3886.0,0.58293436]
[1761273179464,0.81148954,3886.1,3886.0,0.58293436]
[1761273179762,2.65861444,3886.1,3886.0,0.58293436]
[1761273180153,2.65861444,3886.1,3886.0,0.00313436]
[1761273180560,2.65861444,3886.1,3886.0,0.68173436]
[1761273180865,5.81148954,3886.1,3886.0,0.00313436]
[1761273181454,7.65784302,3886.1,3886.0,0.00313436]
[1761273181960,5.81148954,3886.1,3886.0,0.00313436]
[1761273182853,7.65790748,3886.1,3886.0,0.00313436]
[1761273183052,5.81148954,3886.1,3886.0,0.00313436]
[1761273183252,7.6574552,3886.1,3886.0,0.00313436]
[1761273184263,7.6574552,3886.1,3886.0,0.94823436]
[1761273184264,0.81148954,3886.1,3886.0,0.94823436]
[1761273184652,8.61110124,3886.1,3886.0,0.00313436]
[1761273184859,13.61110124,3886.1,3886.0,0.00313436]
[1761273189760,8.61110124,3886.1,3886.0,0.00313436]
[1761273193454,8.61110124,3886.1,3886.0,0.94823436]
[1761273193665,8.61110124,3886.1,3886.0,1.22893436]
[1761273193858,8.61110124,3886.1,3886.0,0.94823436]
[1761273194255,9.99266704,3886.1,3886.0,0.94823436]
[1761273195062,9.99266704,3886.1,3886.0,1.70453436]
[1761273195263,0.81110124,3886.1,3886.0,1.70453436]
[1761273195561,1.73286107,3886.1,3886.0,1.70453436]
[1761273195768,1.53436721,3886.1,3886.0,1.70453436]
[1761273195970,0.61260738,3886.1,3886.0,1.70453436]
[1761273196464,1.732814,3886.1,3886.0,1.70453436]
[1761273196672,1.53436721,3886.1,3886.0,1.70453436]
[1761273197262,1.73284246,3886.1,3886.0,1.70453436]
[1761273198469,0.61260738,3886.1,3886.0,1.70453436]
[1761273199271,1.73294649,3886.1,3886.0,1.70453436]
[1761273199675,0.61260738,3886.1,3886.0,1.70453436]
[1761273203869,0.92175983,3886.2,3886.0,1.70453436]
[1761273204071,0.92175983,3886.2,3886.1,1.4349]
[1761273204275,1.12052904,3886.2,3886.1,1.4349]
[1761273204573,1.72699097,3886.2,3886.1,1.4349]
[1761273205375,0.80523114,3886.2,3886.1,0.6786]
[1761273205676,0.80523114,3886.2,3886.0,0.00313436]
[1761273205973,2.6511968,3886.1,3886.0,0.00313436]
[1761273206178,2.6511968,3886.1,3886.0,0.68173436]
[1761273207475,2.6511968,3886.1,3886.0,0.92873436]
[1761273207675,0.80523114,3886.1,3886.0,0.92873436]
[1761273209478,0.80523114,3886.1,3886.0,0.00313436]
[1761273210273,5.80523114,3886.1,3886.0,0.00313436]
[1761273210466,5.80523114,3886.1,3886.0,0.86233436]
[1761273210978,5.80523114,3886.1,3886.0,0.00313436]
[1761273211170,5.80523114,3886.1,3885.6,0.6086]
[1761273211370,1.84890722,3885.8,3885.6,0.6086]
[1761273211565,0.80523114,3885.7,3885.3,0.6086]
[1761273211767,0.80523114,3885.6,3885.3,0.6086]
[1761273211978,0.80523114,3885.5,3885.3,0.6086]
[1761273212280,8.60523114,3885.4,3885.3,0.61184899]
[1761273219679,8.60523114,3885.4,3885.3,1.43484899]
[1761273220581,8.60523114,3885.4,3885.3,1.01334899]
[1761273220782,9.29633756,3885.4,3885.3,1.01334899]
[1761273221282,9.29837287,3885.4,3885.3,1.01334899]
[1761273222080,8.60726645,3885.4,3885.3,1.43484899]
[1761273222279,2.19265922,3885.4,3885.3,1.43484899]
[1761273230989,0.80726645,3885.4,3885.3,1.43484899]
[1761273231184,1.58656275,3885.4,3885.3,1.43484899]
[1761273231385,0.80726645,3885.4,3885.3,1.43484899]
[1761273231989,1.49837287,3885.4,3885.3,0.61184899]
[1761273235385,3.34728009,3885.4,3885.3,0.61184899]
[1761273235589,3.34728009,3885.4,3885.3,1.01334899]
[1761273235890,1.49837287,3885.4,3885.3,1.43484899]
[1761273238292,3.34728009,3885.4,3885.3,1.43484899]
[1761273238592,1.49837287,3885.4,3885.3,0.61184899]
[1761273239385,0.1154,3885.1,3885.0,0.1572]
[1761273239591,0.77956193,3885.1,3885.0,0.1572]
[1761273239793,0.92266645,3885.1,3885.0,0.5671]
[1761273240394,0.92266645,3885.1,3885.0,0.56906554]
[1761273241189,0.92266645,3885.1,3885.0,0.93196554]
[1761273241392,0.92266645,3885.1,3885.0,1.48446554]
[1761273241593,0.80726645,3885.1,3885.0,1.48446554]
[1761273244187,1.67147287,3885.1,3885.0,0.71166554]
[1761273244997,1.67147287,3885.1,3885.0,0.55446554]
[1761273245294,1.67147287,3885.1,3885.0,0.00196554]
[1761273245501,1.61377287,3885.1,3885.0,0.78026554]
[1761273246000,9.47147287,3885.1,3885.0,0.78026554]
[1761273246396,11.32327433,3885.1,3885.0,0.55446554]
[1761273246594,11.32327433,3885.1,3885.0,0.00196554]
[1761273246789,11.32327433,3885.1,3885.0,0.55446554]
[1761273248799,11.32327433,3885.1,3885.0,0.00196554]
[1761273249003,9.47147287,3885.1,3885.0,0.00196554]
[1761273249202,10.36347123,3885.1,3885.0,0.00196554]
[1761273249503,9.47147287,3885.1,3885.0,0.00196554]
[1761273250199,9.4718334,3885.1,3885.0,0.00196554]
[1761273250399,10.16293982,3885.1,3885.0,0.00196554]
[1761273250696,0.1154,3884.5,3884.4,0.5525]
[1761273251002,1.47066835,3884.5,3884.4,0.5525]
[1761273251301,1.6141334,3884.5,3884.4,0.9624]
[1761273251702,1.6141334,3884.5,3884.4,0.96498761]
[1761273251904,1.6718334,3884.5,3884.4,0.96498761]
[1761273252098,1.6718334,3884.5,3884.4,0.55508761]
[1761273252494,7.36293982,3884.5,3883.5,0.8031]
[1761273252705,2.25146099,3883.6,3883.5,0.5525]
[1761273252901,1.6141334,3883.6,3883.1,0.5525]
[1761273253104,0.80650642,3883.2,3883.1,0.9624]
[1761273253305,3.05758365,3883.2,3883.1,0.5525]
[1761273253606,3.06074867,3883.2,3883.1,0.55556365]
[1761273254196,1.67499842,3883.2,3883.1,0.55556365]
[1761273254400,2.45299199,3883.2,3883.1,0.55556365]
[1761273254596,3.05945392,3883.2,3883.1,0.55556365]
[1761273254802,3.00175392,3883.2,3883.1,0.96546365]
[1761273255405,1.67499842,3883.2,3883.1,0.55556365]
[1761273256310,2.59680073,3883.2,3883.1,0.55556365]
[1761273256506,2.53910073,3883.2,3883.1,0.96546365]
[1761273257104,2.59680073,3883.2,3883.1,0.55556365]
[1761273258098,2.53910073,3883.2,3883.1,0.96546365]
[1761273258304,1.41613337,3883.2,3883.1,0.96546365]
[1761273258708,1.41613337,3883.2,3883.1,1.32836365]
[1761273258905,0.72502695,3883.2,3883.1,1.32836365]
[1761273259110,1.41613337,3883.2,3883.1,1.32836365]
[1761273259503,1.41613337,3883.2,3883.1,0.96546365]
[1761273259708,1.47383337,3883.2,3883.1,0.55556365]
[1761273260210,1.41613337,3883.2,3883.1,0.55556365]
[1761273260513,1.30073337,3883.2,3883.1,1.32836365]
[1761273260810,1.35843337,3883.2,3883.1,1.32836365]
[1761273262609,0.92180231,3883.8,3883.5,0.2258]
[1761273262814,1.3844555,3884.3,3884.0,0.9986]
[1761273263111,1.85073221,3884.8,3884.5,0.2258]
[1761273263112,0.1731,3884.6,3884.5,0.2258]
[1761273263299,0.8505,3884.1,3883.5,0.6357]
[1761273263504,0.97460642,3883.8,3883.6,0.5525]
[1761273263713,0.567,3883.7,3883.6,1.3253]
[1761273264114,0.69323987,3883.8,3883.7,0.5525]
[1761273264309,0.69323987,3883.8,3883.7,1.3253]
[1761273264514,0.00213345,3883.8,3883.7,1.3253]
[1761273274624,0.00213345,3883.8,3883.7,2.01640642]
[1761273276821,0.00213345,3883.8,3883.7,1.3253]
[1761273277214,0.5960741,3883.8,3883.7,1.3253]
[1761273278118,0.8811741,3883.8,3883.7,1.3253]
[1761273281424,1.1662741,3883.8,3883.7,1.3253]
[1761273285727,0.5960741,3883.8,3883.7,1.3253]
[1761273288221,0.79709011,3883.8,3883.7,1.3253]
[1761273291926,0.5960741,3883.8,3883.7,1.3253]
[1761273292125,0.79751049,3883.8,3883.7,1.3253]
[1761273300536,1.72339257,3883.8,3883.7,1.3253]
[1761273300837,0.79751049,3883.8,3883.7,1.3253]
[1761273301538,1.72339257,3883.8,3883.7,1.3253]
[1761273301928,0.79751049,3883.8,3883.7,1.3253]
[1761273303237,0.79751049,3883.8,3883.7,6.3253]
[1761273303426,1.3844555,3884.8,3884.4,0.7232]
[1761273303742,2.19453221,3885.3,3885.2,1.2185]
[1761273303935,2.39599509,3885.3,3885.2,1.2185]
[1761273304234,0.71716288,3885.3,3885.2,0.878]
[1761273304435,0.7192731,3885.3,3885.2,0.878]
[1761273306041,0.5473731,3885.3,3885.2,0.878]
[1761273306341,0.3754731,3885.3,3885.2,1.2185]
[1761273307637,0.5473731,3885.3,3885.2,1.2185]
[1761273308637,0.7192731,3885.3,3885.2,1.2185]
[1761273308934,0.7192731,3885.3,3885.2,0.4953]
[1761273309636,0.5473731,3885.3,3885.2,1.2185]
[1761273310341,0.3754731,3885.3,3885.2,1.2185]
[1761273312640,0.5473731,3885.3,3885.2,1.2185]
[1761273313137,0.7192731,3885.3,3885.2,0.4953]
[1761273313840,0.5157,3885.1,3885.0,0.4953]
[1761273314045,1.58836389,3885.1,3885.0,0.4953]
[1761273314741,1.58739522,3885.1,3885.0,0.4953]
[1761273315138,0.54429421,3885.1,3885.0,1.2185]
[1761273315349,0.95765044,3885.1,3885.0,1.4188]
[1761273315541,1.7581564,3885.1,3885.0,1.4188]
[1761273315845,2.34341263,3885.1,3885.0,1.4188]
[1761273316044,0.95765044,3885.1,3885.0,1.4188]
[1761273321644,0.78575044,3885.1,3885.0,1.4188]
[1761273322645,0.78583566,3885.1,3885.0,1.4188]
[1761273327741,0.62583981,3885.1,3885.0,1.882]
[1761273327943,0.42526038,3885.1,3885.0,1.882]
[1761273328155,0.00211022,3885.3,3885.2,1.1609]
[1761273337348,0.92453826,3886.0,3885.9,0.6727]
[1761273337544,1.12513417,3886.0,3885.9,1.1478]
[1761273338259,0.20059591,3886.0,3885.9,1.1478]
[1761273338557,0.20323474,3886.0,3885.9,1.14988266]
[1761273338756,0.20323474,3886.0,3885.9,1.8405467]
[1761273339258,0.00263883,3886.0,3885.9,1.8405467]
[1761273339759,0.58476554,3886.0,3885.9,1.8405467]
[1761273339958,0.78527687,3886.0,3885.9,1.14988266]
[1761273340359,0.58476554,3886.0,3885.9,1.14988266]
[1761273342359,0.58476554,3886.0,3885.9,2.3036367]
[1761273342658,2.00063221,3887.0,3885.9,2.3036367]
[1761273342659,1.38576219,3887.1,3886.8,1.1478]
[1761273342847,1.85073221,3887.8,3887.7,0.6727]
[1761273343053,1.1603,3888.3,3888.2,1.1478]
[1761273344850,5.78553105,3890.0,3888.2,1.1478]
[1761273344851,0.5012,3889.7,3889.4,1.1478]
[1761273345054,1.1603,3889.9,3889.8,0.6727]
[1761273345358,0.3355,3889.1,3888.5,0.1983]
[1761273345562,1.85096404,3888.6,3888.5,0.871]
[1761273345748,1.85096404,3888.6,3888.5,0.3379]
[1761273346355,1.34976404,3888.6,3888.5,0.871]
[1761273346754,0.6591,3888.6,3888.5,0.871]
[1761273347352,0.3355,3888.6,3888.5,1.3461]
[1761273347552,1.85096404,3888.9,3888.8,1.1478]
[1761273348757,1.85096404,3888.9,3888.8,0.813]
[1761273349260,1.85096404,3888.9,3888.8,0.3379]
[1761273350156,1.85293092,3888.9,3888.8,0.3379]
[1761273351658,1.16226688,3888.9,3888.8,0.3379]
[1761273351860,1.85293092,3888.9,3888.8,0.3379]
[1761273352765,0.5012,3888.8,3888.5,0.81570992]
[1761273352961,1.85096404,3888.6,3888.5,0.00270992]
[1761273353162,1.85096404,3888.6,3888.5,0.67540992]
[1761273353366,1.85096404,3888.6,3888.5,1.34880992]
[1761273354459,0.3355,3889.7,3889.6,0.6727]
[1761273354659,0.6591,3890.1,3890.0,1.1478]
[1761273354858,0.3355,3890.1,3890.0,1.3461]
[1761273355159,0.6591,3890.1,3890.0,1.1478]
[1761273355362,0.6591,3889.8,3889.7,0.813]
[1761273355563,0.66161049,3889.8,3889.7,1.1478]
[1761273355758,0.00251049,3889.8,3889.7,1.61044]
[1761273357657,0.00251049,3889.8,3889.7,1.1478]
[1761273357964,0.33801049,3889.8,3889.7,1.1478]
[1761273359058,0.31801049,3889.8,3889.7,1.1478]
[1761273359566,0.00251049,3889.8,3889.7,1.1478]
[1761273360270,0.31801049,3889.8,3889.7,1.1478]
[1761273360971,1.16291049,3889.8,3889.7,1.1478]
[1761273361372,0.00251049,3889.8,3889.7,1.1478]
[1761273361873,0.31801049,3889.8,3889.7,1.1478]
[1761273362057,1.16291049,3889.8,3889.7,1.1478]
[1761273363070,0.00251049,3889.8,3889.7,1.1478]
[1761273363969,1.16291049,3889.8,3889.7,1.1478]
[1761273364274,1.16291049,3889.8,3889.7,0.813]
[1761273364573,0.00251049,3889.8,3889.7,0.8381]
[1761273364773,1.16291049,3889.8,3889.7,1.1667]
[1761273366068,0.31801049,3889.8,3889.7,1.1667]
[1761273366269,0.00251049,3889.8,3889.7,1.1667]
[1761273366771,1.16291049,3889.8,3889.7,1.1667]
[1761273367072,1.3618289,3889.8,3889.7,1.1667]
[1761273367375,0.8621289,3889.8,3889.7,1.1667]
[1761273367771,0.6607,3889.1,3889.0,1.365]
[1761273368275,0.8598809,3889.1,3889.0,1.365]
[1761273368975,1.3595809,3889.1,3889.0,0.8381]
[1761273369476,1.3595809,3889.1,3888.8,0.8381]
[1761273369477,0.4997,3889.0,3888.8,0.8381]
[1761273369684,1.3595809,3888.9,3888.8,0.8381]
[1761273370176,1.3595809,3888.9,3888.8,1.1667]
[1761273370576,0.8598809,3888.9,3888.8,1.1667]
[1761273370876,0.8598809,3888.9,3888.8,0.5045]
[1761273371176,0.3155,3888.7,3888.6,0.6622]
[1761273371376,0.5146809,3888.7,3888.6,0.6622]
[1761273371581,0.5146809,3888.7,3888.6,1.1667]
[1761273372479,1.3595809,3888.7,3888.6,0.5045]
[1761273372680,1.1604,3888.6,3888.5,0.00270992]
[1761273372880,1.3595809,3888.6,3888.5,0.00270992]
[1761273377284,2.74189212,3888.6,3888.5,0.00270992]
[1761273380378,1.3595809,3888.6,3888.5,0.00270992]
[1761273383084,1.3595809,3888.6,3887.5,0.21]
[1761273383085,1.1604,3887.6,3887.5,0.8381]
[1761273383277,1.1604,3887.6,3887.5,1.3767]
[1761273384085,1.1604,3887.6,3887.5,1.38001288]
[1761273385190,1.1604,3887.6,3887.5,1.17001288]
[1761273385889,1.1604,3887.6,3887.5,0.00331288]
[1761273386185,1.35680331,3887.6,3887.5,0.00331288]
[1761273386977,1.35680331,3887.6,3886.6,4.311]
[1761273386978,2.579,3887.5,3885.6,0.91241272]
[1761273387178,1.85106404,3885.7,3885.0,0.5045]
[1761273387483,0.6048,3885.1,3885.0,1.3128]
[1761273387985,0.2983665,3885.1,3885.0,1.31501281]
[1761273388181,0.89090049,3885.1,3885.0,1.31501281]
[1761273390187,0.2983665,3885.1,3885.0,1.31501281]
[1761273390487,0.0024665,3885.1,3885.0,1.31501281]
[1761273391289,0.0024665,3885.1,3885.0,6.31501281]
[1761273391683,0.0024665,3885.1,3885.0,6.77821281]
[1761273393484,9.553,3886.0,3885.9,1.1236]
[1761273393695,10.14757981,3886.0,3885.9,1.1236]
[1761273394093,0.90557981,3886.0,3885.9,1.1236]
[1761273394587,1.2185542,3886.0,3885.9,1.1236]
[1761273394994,0.00277439,3886.0,3885.9,1.1236]
[1761273398299,9.236,3886.7,3886.0,0.6746]
[1761273398496,1.21622146,3886.6,3886.5,0.8038]
[1761273398995,0.61970237,3886.3,3886.2,0.4832]
[1761273399193,1.21472383,3886.3,3885.6,1.1236]
[1761273399392,0.6212,3885.7,3885.6,1.1236]
[1761273400500,1.117,3885.7,3885.6,1.1236]
[1761273402200,0.311,3885.2,3885.1,0.6404]
[1761273402401,0.8068,3885.6,3885.1,4.4884]
[1761273402594,1.117,3885.6,3885.1,4.4884]
[1761273402790,1.117,3885.6,3885.5,1.1236]
[1761273403098,1.117,3885.6,3885.5,1.315]
[1761273403300,0.6212,3885.6,3885.5,1.315]
[1761273403698,0.311,3885.6,3885.5,1.315]
[1761273407899,0.311,3885.9,3885.8,1.1236]
[1761273408103,0.90722262,3885.9,3885.8,1.1236]
[1761273408305,1.71322262,3885.9,3885.8,1.1236]
[1761273411601,1.21742262,3885.9,3885.8,1.1236]
[1761273411803,1.71322262,3885.9,3885.8,1.1236]
[1761273412204,2.83272395,3885.9,3885.8,1.1236]
[1761273413110,1.91174436,3885.9,3885.8,1.1236]
[1761273413504,2.83342837,3885.9,3885.8,1.1236]
[1761273414113,1.91174436,3885.9,3885.8,1.1236]
[1761273414410,1.10574436,3885.9,3885.8,1.1236]
[1761273414605,0.79474436,3885.9,3885.8,1.1236]
[1761273414809,1.12083016,3885.9,3885.8,1.1236]
[1761273415005,1.71705278,3885.9,3885.8,1.1236]
[1761273415206,0.79474436,3885.9,3885.8,1.1236]
[1761273415413,1.10574436,3885.9,3885.8,1.1236]
[1761273416116,2.48721375,3885.9,3885.8,1.1236]
[1761273417106,1.10574436,3885.9,3885.8,1.1236]
[1761273417408,0.79474436,3885.9,3885.8,1.1236]
[1761273417805,2.18166532,3885.9,3885.8,1.1236]
[1761273418211,0.79474436,3885.9,3885.8,1.1236]
[1761273422408,2.18331413,3885.9,3885.8,1.1236]
[1761273423521,1.09684436,3885.9,3885.8,1.1236]
[1761273423822,2.18344357,3885.9,3885.8,1.1236]
[1761273425213,0.79474436,3885.9,3885.8,1.1236]
[1761273426024,0.19852174,3885.9,3885.8,1.1236]
[1761273426214,0.80445293,3885.9,3885.8,1.1236]
[1761273427224,1.72999231,3885.9,3885.8,1.1236]
[1761273428826,0.60593119,3885.9,3885.8,1.1236]
[1761273438432,0.60593119,3885.9,3885.8,4.9716]
[1761273439138,0.92553938,3886.6,3886.5,0.6066]
[1761273439345,1.22763938,3886.8,3886.7,0.6236]
[1761273439648,0.90958664,3886.8,3886.7,1.05]
[1761273439843,0.7104,3886.8,3886.7,1.05]
[1761273440038,0.71369163,3886.8,3886.7,1.05]
[1761273442140,0.00329163,3886.8,3886.7,1.05]
[1761273442345,0.00329163,3886.8,3886.7,1.92045784]
[1761273443945,0.00329163,3886.8,3886.7,2.12596153]
[1761273448040,1.84753938,3887.8,3887.7,0.6864]
[1761273448240,2.04640144,3887.8,3887.7,0.6864]
[1761273449048,2.04846706,3887.8,3887.7,0.6864]
[1761273449245,0.3837,3887.7,3887.3,0.4016]
[1761273449449,0.9244,3887.4,3887.3,0.9171]
[1761273450046,0.27896562,3887.8,3887.5,1.1405]
[1761273450349,0.27896562,3887.8,3887.7,0.9171]
[1761273451154,0.87819862,3887.8,3887.7,0.9171]
[1761273451349,1.52569862,3887.8,3887.7,0.9171]
[1761273453150,1.14199862,3887.8,3887.7,0.9171]
[1761273453350,1.52569862,3887.8,3887.7,0.9171]
[1761273453654,0.87819862,3887.8,3887.7,1.78755784]
[1761273453845,0.60129862,3887.8,3887.7,1.78755784]
[1761273455348,0.87819862,3887.8,3887.7,1.78755784]
[1761273455546,0.87819862,3887.8,3887.7,0.9171]
[1761273456950,1.52569862,3887.8,3887.7,0.9171]
[1761273457147,0.3837,3887.6,3887.3,0.4016]
[1761273457455,0.9244,3887.4,3887.3,0.4016]
[1761273457754,1.523633,3887.4,3887.3,0.4016]
[1761273458444,1.523633,3887.4,3887.1,0.4016]
[1761273458445,0.5407,3887.2,3887.1,0.4016]
[1761273458646,0.9244,3887.2,3887.1,0.4016]
[1761273458848,1.523633,3887.2,3887.1,0.4016]
[1761273459954,1.523633,3887.2,3887.1,0.6611]
[1761273461450,1.523633,3887.2,3887.1,0.4016]
[1761273462158,0.1572,3887.0,3886.5,4.0282]
[1761273462457,0.9244,3886.5,3886.4,0.9171]
[1761273463154,0.9244,3886.5,3886.4,1.38013]
[1761273465657,0.9244,3886.5,3886.4,2.07047712]
[1761273467558,1.52436687,3886.5,3886.4,1.38013]
[1761273468159,0.59996687,3886.5,3886.4,1.38013]
[1761273471253,0.87686687,3886.5,3886.4,2.07047712]
[1761273471457,1.52436687,3886.5,3886.4,2.07047712]
[1761273472762,1.52436687,3886.5,3886.4,0.4016]
[1761273473359,0.3837,3886.1,3886.0,0.4016]
[1761273473666,1.52436687,3886.1,3886.0,0.4016]
[1761273473866,1.52436687,3886.1,3886.0,0.6611]
[1761273474959,0.5407,3885.8,3885.7,0.2595]
[1761273475164,0.9244,3885.8,3885.7,0.5155]
[1761273475564,0.9244,3885.8,3885.7,0.9171]
[1761273477174,0.9244,3885.8,3885.7,0.6611]
[1761273479473,0.5407,3885.8,3885.7,0.9171]
[1761273480080,0.9149,3885.8,3885.7,0.9171]
[1761273480470,0.5407,3885.8,3885.7,0.9171]
[1761273480766,0.8858,3886.1,3886.0,1.0344]
[1761273480966,1.48313232,3886.1,3886.0,1.0344]
[1761273482474,0.59733232,3886.1,3886.0,1.0344]